bitfinex-derivatives/quotes_BTCF0:USTF0_20210409
["timestamp","ask_amount","ask_price","bid_price","bid_amount"]
[1617994949679,0.44740689,58408.0,58407.0,1.6653935]
[1617994949879,0.38430689,58408.0,58407.0,1.6653935]
[1617994950081,0.44736344,58409.0,58407.0,1.9353935]
[1617994950481,0.44736344,58409.0,58408.0,0.10725655]
[1617994950682,0.44736344,58409.0,58408.0,1.10725655]
[1617994950881,0.44736344,58409.0,58408.0,2.10411884]
[1617994951282,0.57835369,58415.0,58408.0,2.10411884]
[1617994951783,0.57835369,58415.0,58413.0,0.30250619]
[1617994951984,0.57835369,58415.0,58414.0,1.0]
[1617994952184,0.57835369,58415.0,58414.0,1.36927]
[1617994952585,0.57835369,58415.0,58414.0,1.47652655]
[1617994953885,0.57835369,58415.0,58414.0,0.47652655]
[1617994954585,0.57835369,58415.0,58414.0,1.47652655]
[1617994956387,0.07,58415.0,58414.0,1.77863762]
[1617994957086,0.57839163,58415.0,58414.0,1.47652655]
[1617994957687,0.07,58415.0,58414.0,1.47652655]
[1617994957887,0.07,58415.0,58414.0,1.77855102]
[1617994960795,0.1208,58415.0,58414.0,1.77855102]
[1617994960992,0.07,58415.0,58414.0,1.77855102]
[1617994961792,0.07,58415.0,58414.0,2.14082034]
[1617994967696,0.07,58415.0,58414.0,2.64082034]
[1617994967898,0.07,58415.0,58414.0,3.64082034]
[1617994968603,0.07,58415.0,58414.0,2.23249118]
[1617994969003,0.07,58415.0,58414.0,2.14082034]
[1617994970197,0.07,58415.0,58414.0,2.5824799]
[1617994973901,0.07,58415.0,58414.0,1.5824799]
[1617994974101,0.07,58415.0,58414.0,2.5824799]
[1617994979123,0.07,58415.0,58414.0,1.5824799]
[1617994979313,0.07,58415.0,58414.0,3.0824799]
[1617994979512,0.07,58415.0,58414.0,4.0824799]
[1617994979906,0.07,58415.0,58414.0,2.67414573]
[1617994980106,0.07,58415.0,58414.0,2.14082034]
[1617994980606,0.07,58415.0,58414.0,2.58197889]
[1617994982825,0.07,58415.0,58414.0,4.08197889]
[1617994983341,0.44624551,58430.0,58414.0,4.08197889]
[1617994983609,0.44152249,58435.0,58414.0,9.67420708]
[1617994983810,0.44152249,58435.0,58429.0,1.0]
[1617994984009,0.44152249,58435.0,58434.0,1.0]
[1617994984312,0.44618914,58441.0,58434.0,1.29994635]
[1617994984521,1.01285965,58470.0,58434.0,1.29994635]
[1617994984522,0.50679211,58450.0,58440.0,1.0]
[1617994984731,0.50679211,58450.0,58446.0,3.2465]
[1617994984920,0.50679211,58450.0,58446.0,3.37624]
[1617994985120,0.64678948,58451.0,58446.0,3.37624]
[1617994985324,0.64678948,58451.0,58447.0,0.27]
[1617994985621,0.14,58451.0,58447.0,1.27]
[1617994986511,0.14,58451.0,58447.0,0.27]
[1617994986785,0.14,58451.0,58450.0,0.10725655]
[1617994986977,3.94296774,58451.0,58450.0,0.10725655]
[1617994987414,0.76935307,58451.0,58450.0,0.10725655]
[1617994987613,0.26298533,58451.0,58450.0,3.71795655]
[1617994987814,0.14,58451.0,58450.0,3.71795655]
[1617994988215,0.64627149,58451.0,58450.0,3.71795655]
[1617994988428,0.14,58451.0,58450.0,3.71795655]
[1617994990518,0.50602883,58455.0,58450.0,3.83874655]
[1617994990917,0.50603116,58456.0,58450.0,3.83874655]
[1617994991117,0.50603116,58456.0,58450.0,0.49804655]
[1617994991417,0.50603116,58456.0,58452.0,1.0]
[1617994991818,0.50591569,58458.0,58453.0,1.13]
[1617994992020,0.50591185,58459.0,58454.0,1.0]
[1617994992216,0.50591185,58459.0,58455.0,1.0]
[1617994992418,0.50576869,58460.0,58455.0,1.0]
[1617994992720,0.50576869,58460.0,58455.0,1.27]
[1617994992918,0.50576869,58460.0,58459.0,0.10725655]
[1617994993318,0.50576869,58460.0,58459.0,0.37725655]
[1617994993721,0.50562904,58461.0,58459.0,0.37725655]
[1617994994421,0.5056366,58460.0,58459.0,0.37725655]
[1617994994623,0.6500566,58460.0,58459.0,0.37725655]
[1617994995021,0.75731315,58460.0,58459.0,0.37725655]
[1617994996024,0.61289315,58460.0,58459.0,0.37725655]
[1617994998527,0.10725655,58460.0,58459.0,0.37725655]
[1617994998928,0.61261953,58460.0,58459.0,0.37725655]
[1617994999130,0.61261953,58460.0,58459.0,3.48845655]
[1617994999332,0.10725655,58460.0,58459.0,3.48845655]
[1617995003037,0.50529466,58463.0,58459.0,3.48845655]
[1617995003536,0.50529348,58464.0,58459.0,3.48845655]
[1617995004138,0.44472133,58460.0,58459.0,3.48845655]
[1617995006139,0.44472133,58460.0,58459.0,3.54015655]
[1617995006437,0.44472133,58460.0,58459.0,3.48845655]
[1617995009440,0.44489661,58461.0,58459.0,3.48845655]
[1617995010240,0.10725655,58466.0,58459.0,3.48845655]
[1617995010241,0.44489642,58460.0,58459.0,3.48845655]
[1617995010841,0.44486648,58461.0,58459.0,3.48845655]
[1617995011040,0.44486648,58461.0,58460.0,0.0516]
[1617995011250,0.61280688,58466.0,58460.0,0.0516]
[1617995011450,0.44491782,58461.0,58460.0,0.27]
[1617995012546,0.44491782,58461.0,58460.0,0.3214]
[1617995012743,0.44491782,58461.0,58460.0,0.27]
[1617995014344,0.4450072,58462.0,58460.0,0.27]
[1617995016546,0.44501635,58461.0,58460.0,0.27]
[1617995016746,0.56931635,58461.0,58460.0,0.27]
[1617995018250,0.44501635,58461.0,58460.0,0.27]
[1617995018650,0.44501635,58461.0,58460.0,2.7485]
[1617995018850,0.44501635,58461.0,58460.0,0.27]
[1617995019150,0.44506824,58462.0,58460.0,3.2989]
[1617995019350,0.44513901,58461.0,58460.0,3.2989]
[1617995020950,0.61308254,58466.0,58460.0,3.2989]
[1617995020951,0.10725655,58466.0,58460.0,3.2989]
[1617995021250,0.10725655,58466.0,58465.0,0.10725655]
[1617995021653,0.55246733,58466.0,58465.0,0.37725655]
[1617995023154,1.05844007,58466.0,58465.0,0.37725655]
[1617995026156,0.61322929,58466.0,58465.0,0.37725655]
[1617995026355,1.05864239,58466.0,58465.0,0.37725655]
[1617995027557,0.10725655,58466.0,58465.0,0.37725655]
[1617995028257,1.059145,58466.0,58465.0,0.37725655]
[1617995033264,3.994945,58466.0,58465.0,0.37725655]
[1617995033464,5.494945,58466.0,58465.0,0.27]
[1617995033828,6.694945,58466.0,58465.0,0.27]
[1617995033984,6.694945,58466.0,58451.0,0.27]
[1617995034196,6.694945,58466.0,58465.0,0.27]
[1617995034380,7.12008092,58466.0,58465.0,0.27]
[1617995034567,6.12008092,58466.0,58450.0,0.27]
[1617995034807,7.12008092,58466.0,58448.0,0.29906185]
[1617995035067,7.58027994,58466.0,58451.0,0.10725655]
[1617995035268,0.50676939,58456.0,58451.0,0.10725655]
[1617995035470,1.5,58455.0,58452.0,0.27]
[1617995036169,1.44599035,58453.0,58447.0,0.27]
[1617995036498,1.44599035,58453.0,58444.0,0.27]
[1617995036670,0.44599752,58448.0,58443.0,0.27]
[1617995036870,1.0,58447.0,58443.0,0.27]
[1617995037170,0.44609295,58447.0,58446.0,0.10725655]
[1617995037572,1.44609295,58447.0,58446.0,0.37725655]
[1617995038885,0.44609295,58447.0,58446.0,0.37725655]
[1617995039301,1.5533495,58447.0,58446.0,0.37725655]
[1617995039501,0.5533495,58447.0,58446.0,0.37725655]
[1617995040375,1.5533495,58447.0,58446.0,0.37725655]
[1617995040578,0.5533495,58447.0,58446.0,0.37725655]
[1617995041677,0.44609295,58447.0,58446.0,3.64015655]
[1617995042177,1.0,58458.0,58446.0,3.94010293]
[1617995042178,0.44671978,58448.0,58446.0,3.94010293]
[1617995042477,0.44694988,58447.0,58446.0,3.64015655]
[1617995042678,0.44694988,58447.0,58446.0,3.94024017]
[1617995042979,0.44694988,58447.0,58446.0,4.30033277]
[1617995043180,0.44694988,58447.0,58446.0,3.94024017]
[1617995043678,0.10725655,58459.0,58446.0,4.30028674]
[1617995043679,0.44693692,58448.0,58446.0,4.30028674]
[1617995043978,0.44693692,58448.0,58447.0,0.36113526]
[1617995044382,0.44693692,58448.0,58447.0,0.99114731]
[1617995044580,0.44697135,58449.0,58447.0,0.99114731]
[1617995044780,0.44697135,58449.0,58448.0,0.36108232]
[1617995045182,0.44697135,58449.0,58448.0,0.63108232]
[1617995045685,0.44697135,58449.0,58448.0,0.99106538]
[1617995046284,0.44697135,58449.0,58448.0,0.63108232]
[1617995046691,0.44697135,58449.0,58448.0,0.99112081]
[1617995046924,0.44697135,58449.0,58448.0,0.63108232]
[1617995047786,0.44697135,58449.0,58448.0,0.9911894]
[1617995048317,0.44709414,58450.0,58448.0,0.9911894]
[1617995048706,0.44709414,58450.0,58449.0,0.72104361]
[1617995049088,0.44709414,58450.0,58449.0,0.99104361]
[1617995049420,0.44714692,58451.0,58449.0,4.51264361]
[1617995049789,0.44714692,58451.0,58450.0,0.72101623]
[1617995050189,0.44714692,58451.0,58450.0,0.99101623]
[1617995050389,0.50810765,58457.0,58450.0,0.99101623]
[1617995050589,0.44714463,58451.0,58450.0,0.99101623]
[1617995050791,0.44714485,58451.0,58450.0,0.99101623]
[1617995051593,0.44716394,58452.0,58450.0,0.99101623]
[1617995052394,0.44716394,58452.0,58451.0,0.72096872]
[1617995052796,2.8976,58453.0,58451.0,0.99096872]
[1617995053197,2.8976,58453.0,58452.0,0.33074455]
[1617995053597,0.50810812,58457.0,58455.0,2.8925]
[1617995053997,0.50810812,58457.0,58456.0,0.27]
[1617995054498,0.95526813,58457.0,58456.0,0.27]
[1617995056301,0.44716001,58457.0,58456.0,0.27]
[1617995056500,0.95530618,58457.0,58456.0,0.27]
[1617995057000,0.44716001,58457.0,58456.0,0.27]
[1617995057301,0.44716001,58457.0,58456.0,3.0875]
[1617995057703,0.44716001,58457.0,58456.0,2.8175]
[1617995058204,0.44716001,58457.0,58456.0,3.0875]
[1617995059813,0.44716001,58457.0,58456.0,0.27]
[1617995060105,1.08530838,58457.0,58456.0,0.27]
[1617995060305,1.08530838,58457.0,58454.0,0.27]
[1617995060623,0.44723325,58455.0,58454.0,0.27]
[1617995061505,0.44723325,58455.0,58453.0,0.27]
[1617995061805,0.44725464,58454.0,58453.0,0.27]
[1617995063714,0.95552635,58454.0,58453.0,0.27]
[1617995064514,5.09322635,58454.0,58453.0,0.27]
[1617995064714,5.45921814,58454.0,58453.0,0.27]
[1617995065116,6.00303515,58454.0,58453.0,0.27]
[1617995065315,6.00303515,58454.0,58450.0,0.10725655]
[1617995065617,1.32166298,58451.0,58450.0,0.10725655]
[1617995066219,2.32166298,58451.0,58450.0,0.37725655]
[1617995066917,1.32166298,58451.0,58450.0,0.37725655]
[1617995067118,2.32166298,58451.0,58450.0,0.37725655]
[1617995067319,1.42891953,58451.0,58450.0,0.37725655]
[1617995067719,0.98158901,58451.0,58450.0,0.37725655]
[1617995068220,0.10725655,58451.0,58450.0,0.37725655]
[1617995068720,2.42874284,58451.0,58450.0,0.37725655]
[1617995070818,1.42874284,58451.0,58450.0,0.37725655]
[1617995073220,2.42874284,58451.0,58450.0,0.37725655]
[1617995073520,1.42874284,58451.0,58450.0,0.37725655]
[1617995073821,2.42874284,58451.0,58450.0,0.37725655]
[1617995074424,5.98184284,58451.0,58450.0,0.37725655]
[1617995075123,6.52533439,58451.0,58450.0,0.37725655]
[1617995075525,6.52533439,58451.0,58450.0,0.27]
[1617995076025,6.52533439,58451.0,58439.0,0.27]
[1617995076226,6.52533439,58451.0,58450.0,0.27]
[1617995076627,1.0,58442.0,58439.0,0.27]
[1617995076826,0.10412,58442.0,58438.0,0.3605303]
[1617995077038,0.81275513,58440.0,58438.0,0.3605303]
[1617995077233,0.81275513,58440.0,58439.0,0.27]
[1617995077526,0.10725655,58440.0,58439.0,0.37725655]
[1617995077727,0.9810484,58440.0,58439.0,0.4383463]
[1617995078627,0.9810484,58440.0,58439.0,0.37725655]
[1617995081630,3.5171484,58440.0,58439.0,0.37725655]
[1617995081830,4.5171484,58440.0,58439.0,0.37725655]
[1617995082138,4.71451868,58440.0,58439.0,0.37725655]
[1617995082331,2.17841868,58440.0,58439.0,0.37725655]
[1617995082564,2.07116213,58440.0,58439.0,2.95415655]
[1617995082824,1.07116213,58440.0,58439.0,3.95415655]
[1617995082956,1.01007238,58440.0,58439.0,3.95415655]
[1617995083134,0.36562871,58443.0,58439.0,4.84550075]
[1617995083334,0.44685697,58447.0,58441.0,1.0]
[1617995083536,0.44681744,58453.0,58446.0,3.07]
[1617995083939,0.71078594,58476.0,58446.0,3.07]
[1617995083940,0.44677664,58457.0,58452.0,0.65863149]
[1617995084167,0.44677664,58457.0,58452.0,0.77133149]
[1617995084353,0.44676076,58460.0,58458.0,1.0]
[1617995084537,0.44676076,58460.0,58456.0,1.65820579]
[1617995084739,0.44674115,58462.0,58459.0,0.98898787]
[1617995084968,0.44674115,58462.0,58459.0,5.45988787]
[1617995085238,0.44673189,58463.0,58461.0,1.65778479]
[1617995085436,0.44673189,58463.0,58462.0,0.10725655]
[1617995085637,0.44673189,58463.0,58462.0,0.37725655]
[1617995085838,0.50763603,58469.0,58462.0,0.37725655]
[1617995085839,0.44658699,58466.0,58462.0,3.62475814]
[1617995086038,0.44658699,58466.0,58463.0,1.0]
[1617995086239,0.44659058,58465.0,58464.0,0.29885351]
[1617995086441,0.44659058,58465.0,58464.0,0.70708351]
[1617995086639,0.44659058,58465.0,58464.0,4.69008351]
[1617995087440,0.56835577,58480.0,58464.0,4.69008351]
[1617995087441,0.44645357,58466.0,58464.0,3.69008351]
[1617995087639,0.44645357,58466.0,58464.0,4.69008351]
[1617995088140,0.44645357,58466.0,58465.0,1.0]
[1617995088540,0.44645357,58466.0,58465.0,1.27]
[1617995088742,0.44634169,58467.0,58465.0,0.27]
[1617995090549,0.44613303,58468.0,58465.0,0.27]
[1617995090744,0.44613177,58467.0,58465.0,0.27]
[1617995090945,0.44612613,58468.0,58465.0,0.27]
[1617995092455,0.50686798,58474.0,58465.0,0.27]
[1617995092745,0.44597245,58468.0,58465.0,0.27]
[1617995093053,2.5018,58466.0,58465.0,0.27]
[1617995093246,2.65298,58466.0,58465.0,0.27]
[1617995093445,2.65298,58466.0,58463.0,0.27]
[1617995093765,3.28475,58466.0,58465.0,0.27]
[1617995093969,2.65298,58466.0,58465.0,0.27]
[1617995094185,2.65298,58466.0,58463.0,0.27]
[1617995094345,0.15118,58466.0,58465.0,0.27]
[1617995094547,0.44594574,58466.0,58465.0,0.27]
[1617995094746,0.44594574,58466.0,58465.0,3.4887]
[1617995095271,0.44594574,58466.0,58465.0,3.7587]
[1617995095448,0.44594574,58466.0,58465.0,3.4887]
[1617995095647,1.0,58475.0,58465.0,3.7587]
[1617995096049,1.10725655,58476.0,58465.0,3.7587]
[1617995096248,0.44590861,58466.0,58465.0,3.7587]
[1617995097051,0.44588063,58468.0,58465.0,3.7587]
[1617995097551,0.44587637,58467.0,58465.0,3.7587]
[1617995098352,0.44587637,58467.0,58465.0,0.27]
[1617995098553,0.44583534,58469.0,58466.0,2.6297]
[1617995098853,0.44583136,58470.0,58468.0,2.6311]
[1617995099256,1.0,58480.0,58468.0,2.6311]
[1617995099454,0.445831,58471.0,58469.0,0.27]
[1617995101557,0.445831,58471.0,58470.0,0.10725655]
[1617995101958,0.445831,58471.0,58470.0,0.37725655]
[1617995103161,0.3367281,58485.0,58470.0,0.37725655]
[1617995103162,0.44576539,58473.0,58470.0,0.37725655]
[1617995104161,0.44571523,58471.0,58470.0,0.37725655]
[1617995104760,1.0,58482.0,58470.0,0.37725655]
[1617995104962,0.4456707,58472.0,58470.0,0.37725655]
[1617995105361,0.4456707,58472.0,58471.0,3.2103]
[1617995105661,0.44565142,58473.0,58471.0,3.4803]
[1617995106364,0.44565183,58472.0,58471.0,3.4803]
[1617995106864,0.44559626,58473.0,58471.0,3.4803]
[1617995108967,0.50632189,58479.0,58471.0,3.4803]
[1617995109370,0.44554298,58473.0,58471.0,3.4803]
[1617995109668,0.44551617,58472.0,58471.0,3.4803]
[1617995110267,0.44549752,58473.0,58471.0,3.4803]
[1617995110568,0.44549752,58473.0,58471.0,0.27]
[1617995111582,6.06425655,58472.0,58471.0,0.27]
[1617995111872,6.63109978,58472.0,58461.0,0.29909406]
[1617995112069,1.0,58471.0,58461.0,0.29909406]
[1617995112269,1.0,58471.0,58453.0,0.29955781]
[1617995112569,1.0,58462.0,58453.0,0.29955781]
[1617995112768,1.0,58462.0,58460.0,0.27]
[1617995112969,1.44556257,58462.0,58454.0,0.27]
[1617995113168,1.44556257,58462.0,58461.0,0.27]
[1617995113369,0.44556257,58462.0,58461.0,0.27]
[1617995113569,0.55281912,58462.0,58461.0,0.10725655]
[1617995113771,0.10725655,58462.0,58461.0,0.10725655]
[1617995113971,0.10725655,58462.0,58461.0,0.37725655]
[1617995114972,0.44553083,58463.0,58461.0,0.49649655]
[1617995115172,0.44555389,58464.0,58461.0,0.49649655]
[1617995115374,0.44554967,58465.0,58463.0,3.5721]
[1617995115572,0.44552098,58466.0,58463.0,3.5721]
[1617995115773,0.44552098,58466.0,58464.0,0.27]
[1617995116472,0.10725655,58474.0,58464.0,0.27]
[1617995116473,0.44550208,58467.0,58464.0,0.27]
[1617995117076,0.44551541,58468.0,58464.0,0.27]
[1617995117676,0.44551541,58468.0,58467.0,0.10725655]
[1617995118077,0.81003489,58468.0,58467.0,0.37725655]
[1617995118279,0.36451948,58468.0,58467.0,0.37725655]
[1617995118479,0.80999031,58468.0,58467.0,0.37725655]
[1617995118978,0.36451948,58468.0,58467.0,0.37725655]
[1617995119980,0.809985,58468.0,58467.0,0.37725655]
[1617995120479,0.36451948,58468.0,58467.0,0.37725655]
[1617995121784,0.36444103,58469.0,58467.0,4.65315655]
[1617995122084,0.36444103,58469.0,58467.0,3.65315655]
[1617995122283,0.36442834,58470.0,58467.0,3.65315655]
[1617995122485,0.56683231,58490.0,58467.0,3.65315655]
[1617995122486,0.36439266,58473.0,58467.0,3.65315655]
[1617995123185,0.36435741,58474.0,58467.0,3.95139945]
[1617995123385,0.36435701,58475.0,58472.0,1.0]
[1617995123583,0.36435701,58475.0,58474.0,0.10725655]
[1617995123784,0.36435701,58475.0,58474.0,0.24734655]
[1617995124184,0.36435701,58475.0,58474.0,0.51734655]
[1617995126990,0.36435701,58475.0,58474.0,0.37725655]
[1617995129195,0.36435701,58475.0,58474.0,3.28215655]
[1617995131098,0.36435701,58475.0,58474.0,0.37725655]
[1617995131397,0.42542428,58475.0,58474.0,0.37725655]
[1617995131799,0.36435701,58475.0,58474.0,0.37725655]
[1617995132700,0.06106847,58475.0,58474.0,0.37725655]
[1617995133302,0.36450054,58475.0,58474.0,0.37725655]
[1617995135604,0.42556879,58475.0,58474.0,0.37725655]
[1617995136104,0.36450054,58475.0,58474.0,0.37725655]
[1617995136305,0.4255689,58475.0,58474.0,0.37725655]
[1617995136507,0.36450054,58475.0,58474.0,0.37725655]
[1617995138309,0.81049869,58475.0,58474.0,0.37725655]
[1617995139513,0.81049869,58475.0,58474.0,0.50094655]
[1617995140514,0.81049869,58475.0,58474.0,3.05144655]
[1617995141617,0.81049869,58475.0,58474.0,0.80012731]
[1617995142217,0.44599815,58475.0,58474.0,0.80012731]
[1617995142418,0.44599815,58475.0,58474.0,0.50094655]
[1617995142817,0.44599815,58475.0,58474.0,0.37725655]
[1617995146523,0.44599815,58475.0,58474.0,1.37725655]
[1617995146738,0.44599815,58475.0,58474.0,1.67655564]
[1617995146925,0.44599815,58475.0,58474.0,4.29605564]
[1617995147426,0.44599815,58475.0,58474.0,4.34735564]
[1617995147927,1.0,58492.0,58474.0,3.99675655]
[1617995148224,0.2322493,58495.0,58474.0,3.99675655]
[1617995148426,0.50780625,58480.0,58474.0,3.99675655]
[1617995148625,0.50780625,58480.0,58476.0,0.29930628]
[1617995149026,0.44687675,58477.0,58475.0,0.29928064]
[1617995149325,0.44686153,58476.0,58475.0,0.29928064]
[1617995149525,0.44686153,58476.0,58475.0,0.56928064]
[1617995150330,0.44686153,58476.0,58475.0,0.27]
[1617995150530,0.56208153,58476.0,58475.0,0.27]
[1617995152430,0.44686153,58476.0,58475.0,0.56916609]
[1617995153636,0.44686153,58476.0,58475.0,4.12676609]
[1617995153832,0.44686153,58476.0,58475.0,5.12676609]
[1617995154233,0.44686153,58476.0,58475.0,4.12676609]
[1617995155533,0.44686153,58476.0,58475.0,0.56916609]
[1617995156933,0.44686153,58476.0,58475.0,1.56916609]
[1617995157232,0.44686153,58476.0,58475.0,0.56916609]
[1617995157434,0.54925153,58476.0,58475.0,0.27]
[1617995158539,1.05704603,58476.0,58475.0,0.27]
[1617995163542,0.6101845,58476.0,58475.0,0.27]
[1617995163943,1.05708534,58476.0,58475.0,0.27]
[1617995174663,1.05708534,58476.0,58475.0,3.6435]
[1617995181176,2.05708534,58476.0,58475.0,3.6435]
[1617995181375,1.05708534,58476.0,58475.0,3.6435]
[1617995183778,2.05708534,58476.0,58475.0,3.6435]
[1617995183980,1.05708534,58476.0,58475.0,3.6435]
[1617995184377,1.05708534,58476.0,58475.0,0.27]
[1617995184977,1.5743284,58476.0,58475.0,0.27]
[1617995185777,2.5743284,58476.0,58475.0,0.27]
[1617995187783,1.5743284,58476.0,58475.0,0.27]
[1617995188482,1.23729758,58476.0,58475.0,0.27]
[1617995189784,1.05708534,58476.0,58475.0,0.27]
[1617995192389,3.76308534,58476.0,58475.0,0.27]
[1617995192588,4.76308534,58476.0,58475.0,0.27]
[1617995193088,4.95348182,58476.0,58475.0,0.27]
[1617995193789,5.52291925,58476.0,58475.0,0.27]
[1617995194289,5.88902334,58476.0,58475.0,0.27]
[1617995194489,4.88902334,58476.0,58475.0,0.27]
[1617995194789,5.88902334,58476.0,58475.0,0.27]
[1617995195490,4.88902334,58476.0,58475.0,0.27]
[1617995196092,5.88902334,58476.0,58475.0,0.27]
[1617995196995,6.08902334,58476.0,58475.0,0.27]
[1617995198195,5.72291925,58476.0,58475.0,0.27]
[1617995198394,5.52291925,58476.0,58475.0,0.27]
[1617995198694,4.95348182,58476.0,58475.0,0.27]
[1617995198894,5.86887526,58476.0,58475.0,0.27]
[1617995199296,5.52274814,58476.0,58475.0,0.27]
[1617995199495,5.86887596,58476.0,58475.0,0.27]
[1617995199696,5.52274814,58476.0,58475.0,0.27]
[1617995200296,4.95348182,58476.0,58475.0,0.27]
[1617995200596,3.95348182,58476.0,58475.0,0.27]
[1617995200896,5.52272493,58476.0,58475.0,0.27]
[1617995201096,4.95348182,58476.0,58475.0,0.27]
[1617995203401,5.52271654,58476.0,58475.0,0.27]
[1617995205605,4.52271654,58476.0,58475.0,0.27]
[1617995205806,2.80839,58476.0,58475.0,0.27]
[1617995206006,3.76383239,58476.0,58475.0,0.27]
[1617995206207,4.76383239,58476.0,58475.0,0.27]
[1617995209114,5.33301499,58476.0,58475.0,0.27]
[1617995209515,4.76383239,58476.0,58475.0,0.27]
[1617995210514,5.33299009,58476.0,58475.0,0.27]
[1617995212545,5.33299009,58476.0,58466.0,0.27]
[1617995212932,5.33299009,58476.0,58475.0,0.27]
[1617995213123,4.25562484,58476.0,58475.0,0.27]
[1617995213349,5.30839,58476.0,58466.0,0.27]
[1617995213515,5.67917281,58476.0,58465.0,0.27]
[1617995213717,0.95547811,58466.0,58465.0,0.27]
[1617995214016,1.95547811,58466.0,58462.0,0.30048601]
[1617995214215,2.15547811,58466.0,58465.0,0.27]
[1617995214417,1.2,58466.0,58462.0,0.30048601]
[1617995214619,2.34579497,58466.0,58462.0,0.30048601]
[1617995214817,2.34579497,58466.0,58463.0,0.27]
[1617995215017,0.2,58466.0,58463.0,0.27]
[1617995215420,1.95547128,58464.0,58463.0,0.27]
[1617995215618,5.49956128,58464.0,58463.0,0.27]
[1617995215919,5.49956128,58464.0,58460.0,0.27]
[1617995216118,0.10725655,58461.0,58459.0,0.27]
[1617995216319,1.06279948,58461.0,58459.0,0.27]
[1617995216556,1.06279948,58461.0,58457.0,0.30070037]
[1617995216753,1.06279948,58461.0,58458.0,0.27]
[1617995216754,1.32111161,58460.0,58458.0,0.27]
[1617995216932,0.10725655,58461.0,58459.0,3.4106]
[1617995217336,1.32092612,58460.0,58459.0,3.4106]
[1617995217721,1.32092612,58460.0,58459.0,3.4706]
[1617995218939,1.32092612,58460.0,58459.0,0.06]
[1617995219528,1.32092612,58460.0,58457.0,0.27]
[1617995219529,2.32092612,58460.0,58457.0,0.27]
[1617995219723,1.53471678,58460.0,58459.0,0.27]
[1617995219922,1.53471678,58460.0,58456.0,0.10725655]
[1617995220224,2.53471678,58460.0,58457.0,0.27]
[1617995220425,1.32040977,58458.0,58457.0,0.27]
[1617995220723,2.32040977,58458.0,58457.0,0.27]
[1617995221424,1.32040977,58458.0,58457.0,0.27]
[1617995222225,0.81257548,58458.0,58457.0,0.265]
[1617995223825,0.81257548,58458.0,58457.0,4.11498792]
[1617995225527,0.81257548,58458.0,58457.0,0.56518792]
[1617995225728,0.36566912,58458.0,58457.0,0.92569024]
[1617995226428,0.36566912,58458.0,58457.0,0.56518792]
[1617995227029,0.36566912,58458.0,58457.0,0.92562506]
[1617995228129,0.36566912,58458.0,58457.0,0.56518792]
[1617995228428,0.36566912,58458.0,58457.0,0.92568636]
[1617995228629,0.81241647,58458.0,58457.0,0.56518792]
[1617995229129,0.36566912,58458.0,58457.0,0.92569187]
[1617995231933,0.4467416,58459.0,58457.0,0.92569187]
[1617995232133,0.10725655,58470.0,58457.0,0.265]
[1617995232134,0.44675331,58458.0,58457.0,0.265]
[1617995232534,0.44675331,58458.0,58457.0,0.5655097]
[1617995235936,0.44679099,58459.0,58457.0,0.92615327]
[1617995236337,0.50766038,58464.0,58458.0,0.36164372]
[1617995236536,0.44679024,58459.0,58458.0,0.36164372]
[1617995236737,0.8123684,58459.0,58458.0,0.36164372]
[1617995236937,0.8123684,58459.0,58458.0,0.30057024]
[1617995237137,0.8123684,58459.0,58458.0,0.57057024]
[1617995237537,0.8123684,58459.0,58458.0,0.63164298]
[1617995237836,0.8123684,58459.0,58458.0,0.99228107]
[1617995238936,0.36557816,58459.0,58458.0,0.99228107]
[1617995239137,0.42665083,58459.0,58458.0,0.99228107]
[1617995239437,0.36557816,58459.0,58458.0,0.99228107]
[1617995239637,0.42665083,58459.0,58458.0,0.99228107]
[1617995239937,0.36557816,58459.0,58458.0,0.99228107]
[1617995240237,0.81242206,58459.0,58458.0,0.99228107]
[1617995240739,0.81242206,58459.0,58458.0,0.63164298]
[1617995241445,0.81242206,58459.0,58458.0,0.57057024]
[1617995246240,0.81242206,58459.0,58458.0,0.9315469]
[1617995246640,0.81242206,58459.0,58458.0,0.57057024]
[1617995247143,0.81242206,58459.0,58458.0,0.27]
[1617995247342,0.81242206,58459.0,58458.0,0.57088343]
[1617995248041,0.10725655,58470.0,58458.0,0.27]
[1617995248443,0.10725655,58470.0,58469.0,0.10725655]
[1617995248943,1.4280176,58470.0,58469.0,0.10725655]
[1617995249242,1.48909199,58470.0,58469.0,0.37725655]
[1617995253350,2.05819127,58470.0,58469.0,0.37725655]
[1617995253750,1.4280176,58470.0,58469.0,0.37725655]
[1617995253952,1.48909142,58470.0,58469.0,0.37725655]
[1617995254253,2.05819316,58470.0,58469.0,0.37725655]
[1617995255955,1.48909142,58470.0,58469.0,0.37725655]
[1617995258259,2.05826561,58470.0,58469.0,0.37725655]
[1617995260861,2.05826561,58470.0,58469.0,0.27]
[1617995261361,2.05826561,58470.0,58466.0,0.27]
[1617995261564,0.10725655,58470.0,58469.0,0.27]
[1617995262064,1.99789835,58470.0,58466.0,0.27]
[1617995262265,1.99789835,58470.0,58469.0,0.27]
[1617995262466,0.10725655,58470.0,58463.0,0.10725655]
[1617995262767,1.32148012,58464.0,58463.0,0.10725655]
[1617995262966,1.42697012,58464.0,58463.0,0.10725655]
[1617995263167,1.42697012,58464.0,58463.0,0.37725655]
[1617995263467,0.10549,58464.0,58463.0,0.37725655]
[1617995263767,1.42699389,58464.0,58463.0,0.37725655]
[1617995264467,1.53425044,58464.0,58463.0,0.37725655]
[1617995268173,1.53425044,58464.0,58463.0,0.27]
[1617995268374,5.21715044,58464.0,58463.0,0.27]
[1617995268575,5.21715044,58464.0,58459.0,0.27]
[1617995268873,5.26785044,58464.0,58459.0,0.27]
[1617995269075,1.32187837,58460.0,58459.0,0.27]
[1617995269375,1.52187837,58460.0,58459.0,0.217]
[1617995269576,2.52187837,58460.0,58456.0,0.27]
[1617995269775,1.32188808,58457.0,58452.0,0.30150553]
[1617995269974,2.32188808,58457.0,58452.0,0.30150553]
[1617995270174,2.32188808,58457.0,58451.0,0.3013864]
[1617995270175,3.4671,58452.0,58451.0,0.3013864]
[1617995270474,3.4671,58452.0,58449.0,0.473]
[1617995270475,3.68981655,58452.0,58450.0,0.30149363]
[1617995270774,5.29384314,58452.0,58451.0,0.26]
[1617995271177,5.29384314,58452.0,58450.0,0.30149363]
[1617995271376,5.29384314,58452.0,58451.0,0.27]